[Event "Titled Tuesday Blitz October 25 Late 2022"]
[White "Petrova, Irina"]
[Black "Arabidze, Meri"]
[WhiteFideId "14124122"]
[BlackFideId "13604040"]
[WhiteElo "2023"]
[BlackElo "2403"]
[Result "1-0"]
[Round "02"]
[TimeControl "180+1"]
[Date "2022.10.26"]
[WhiteClock "0:00:09"]
[BlackClock "0:00:07"]

1. e4 {[%clk 0:03:00]}  c5 {[%clk 0:02:59]} 2. Nf3 {[%clk 0:03:01]}  e6 {[%clk 0:03:00]} 3. c4 {[%clk 0:03:01]}  Nc6 {[%clk 0:02:59]} 4. Nc3 {[%clk 0:03:01]}  Nd4 {[%clk 0:02:59]} 5. g3 {[%clk 0:03:02]}  Ne7 {[%clk 0:02:59]} 6. Bg2 {[%clk 0:03:02]}  Nec6 {[%clk 0:02:59]} 7. O-O {[%clk 0:03:02]}  Be7 {[%clk 0:02:59]} 8. d3 {[%clk 0:03:01]}  O-O {[%clk 0:02:59]} 9. a3 {[%clk 0:03:02]}  a6 {[%clk 0:02:59]} 10. Rb1 {[%clk 0:03:01]}  b5 {[%clk 0:02:53]} 11. Nxd4 {[%clk 0:03:00]}  Nxd4 {[%clk 0:02:53]} 12. Ne2 {[%clk 0:02:49]}  bxc4 {[%clk 0:02:48]} 13. dxc4 {[%clk 0:02:48]}  e5 {[%clk 0:02:48]} 14. b4 {[%clk 0:02:05]}  d6 {[%clk 0:02:46]} 15. Nc3 {[%clk 0:01:59]}  Be6 {[%clk 0:02:45]} 16. Nd5 {[%clk 0:01:58]}  Bxd5 {[%clk 0:02:43]} 17. exd5 {[%clk 0:01:55]}  cxb4 {[%clk 0:02:26]} 18. axb4 {[%clk 0:01:56]}  Rc8 {[%clk 0:02:23]} 19. Be3 {[%clk 0:01:30]}  Rxc4 {[%clk 0:02:21]} 20. Qd3 {[%clk 0:01:28]}  Qc7 {[%clk 0:02:05]} 21. Bxd4 {[%clk 0:01:20]}  exd4 {[%clk 0:02:03]} 22. Rfe1 {[%clk 0:01:14]}  Bf6 {[%clk 0:02:02]} 23. Bf1 {[%clk 0:01:12]}  Rc3 {[%clk 0:01:37]} 24. Qxa6 {[%clk 0:01:12]}  g6 {[%clk 0:01:26]} 25. b5 {[%clk 0:01:12]}  d3 {[%clk 0:01:21]} 26. b6 {[%clk 0:01:12]}  Qc5 {[%clk 0:01:21]} 27. Bxd3 {[%clk 0:01:00]}  Qxd5 {[%clk 0:00:57]} 28. Be4 {[%clk 0:00:55]}  Qd2 {[%clk 0:00:40]} 29. b7 {[%clk 0:00:51]}  Bd4 {[%clk 0:00:37]} 30. Re2 {[%clk 0:00:51]}  Rc1+ {[%clk 0:00:32]} 31. Rxc1 {[%clk 0:00:45]}  Qxc1+ {[%clk 0:00:32]} 32. Kg2 {[%clk 0:00:45]}  Qc7 {[%clk 0:00:21]} 33. Rc2 {[%clk 0:00:37]}  Bc5 {[%clk 0:00:20]} 34. Bd5 {[%clk 0:00:25]}  Kg7 {[%clk 0:00:19]} 35. Qa1+ {[%clk 0:00:23]}  f6 {[%clk 0:00:19]} 36. Qe1 {[%clk 0:00:20]}  h5 {[%clk 0:00:16]} 37. Re2 {[%clk 0:00:20]}  Qb6 {[%clk 0:00:10]} 38. Re7+ {[%clk 0:00:19]}  Kh6 {[%clk 0:00:10]} 39. Qd2+ {[%clk 0:00:17]}  g5 {[%clk 0:00:11]} 40. Qd3 {[%clk 0:00:14]}  f5 {[%clk 0:00:11]} 41. Re6+ {[%clk 0:00:11]}  Kh7 {[%clk 0:00:10]} 42. Qe2 {[%clk 0:00:11]}  Rf7 {[%clk 0:00:07]} 43. Qxh5+ {[%clk 0:00:11]}  Kg7 {[%clk 0:00:07]} 44. Qh6+ {[%clk 0:00:10]}  Kg8 {[%clk 0:00:07]} 45. Re8# {[%clk 0:00:09]} 1-0


[Site "https://www.chess.com"]

[Event "Titled Tuesday Blitz October 25 Late 2022"]
[White "Pham, Khoi"]
[Black "Floresvillar Gonzalez, Luis Migu"]
[WhiteFideId "1054988"]
[BlackFideId "5100542"]
[WhiteElo "2459"]
[BlackElo "2040"]
[Result "1-0"]
[Round "02"]
[TimeControl "180+1"]
[Date "2022.10.26"]
[WhiteClock "0:01:17"]
[BlackClock "0:00:19"]

1. g4 {[%clk 0:03:00]}  d5 {[%clk 0:02:55]} 2. Bg2 {[%clk 0:03:00]}  c6 {[%clk 0:02:50]} 3. c4 {[%clk 0:02:58]}  e6 {[%clk 0:02:41]} 4. d4 {[%clk 0:02:52]}  Bb4+ {[%clk 0:02:37]} 5. Bd2 {[%clk 0:02:49]}  Bxd2+ {[%clk 0:02:36]} 6. Nxd2 {[%clk 0:02:50]}  Ne7 {[%clk 0:02:31]} 7. Ngf3 {[%clk 0:02:48]}  Nd7 {[%clk 0:02:30]} 8. e4 {[%clk 0:02:44]}  dxe4 {[%clk 0:02:26]} 9. Nxe4 {[%clk 0:02:45]}  Qa5+ {[%clk 0:02:22]} 10. Nc3 {[%clk 0:02:44]}  Nf6 {[%clk 0:02:08]} 11. Ne5 {[%clk 0:02:43]}  Ng6 {[%clk 0:02:04]} 12. Nd3 {[%clk 0:02:39]}  Nh4 {[%clk 0:01:55]} 13. Kf1 {[%clk 0:02:35]}  Nxg2 {[%clk 0:01:53]} 14. Kxg2 {[%clk 0:02:36]}  Qg5 {[%clk 0:01:50]} 15. h3 {[%clk 0:02:34]}  h5 {[%clk 0:01:50]} 16. f4 {[%clk 0:02:34]}  Qg6 {[%clk 0:01:40]} 17. Ne5 {[%clk 0:02:33]}  Qh6 {[%clk 0:01:33]} 18. g5 {[%clk 0:02:33]}  Qh7 {[%clk 0:01:26]} 19. gxf6 {[%clk 0:02:32]}  gxf6 {[%clk 0:01:26]} 20. Nf3 {[%clk 0:02:31]}  Rg8+ {[%clk 0:01:25]} 21. Kh2 {[%clk 0:02:30]}  Bd7 {[%clk 0:01:22]} 22. Qb1 {[%clk 0:02:27]}  Qh6 {[%clk 0:01:16]} 23. Qe4 {[%clk 0:02:23]}  O-O-O {[%clk 0:01:16]} 24. Rhg1 {[%clk 0:02:20]}  f5 {[%clk 0:01:10]} 25. Qe3 {[%clk 0:02:18]}  f6 {[%clk 0:01:07]} 26. d5 {[%clk 0:02:15]}  e5 {[%clk 0:01:03]} 27. Ne2 {[%clk 0:02:05]}  e4 {[%clk 0:01:01]} 28. Nfd4 {[%clk 0:02:00]}  cxd5 {[%clk 0:00:58]} 29. cxd5 {[%clk 0:01:58]}  Kb8 {[%clk 0:00:59]} 30. Rac1 {[%clk 0:01:56]}  h4 {[%clk 0:00:57]} 31. Nc6+ {[%clk 0:01:51]}  Bxc6 {[%clk 0:00:51]} 32. dxc6 {[%clk 0:01:52]}  bxc6 {[%clk 0:00:51]} 33. Rxc6 {[%clk 0:01:49]}  Rxg1 {[%clk 0:00:47]} 34. Kxg1 {[%clk 0:01:50]}  Qg7+ {[%clk 0:00:33]} 35. Kf2 {[%clk 0:01:41]}  Rg8 {[%clk 0:00:31]} 36. Qb3+ {[%clk 0:01:37]}  Ka8 {[%clk 0:00:29]} 37. Ke3 {[%clk 0:01:29]}  Qd7 {[%clk 0:00:24]} 38. Qxg8+ {[%clk 0:01:25]}  Kb7 {[%clk 0:00:24]} 39. Rc3 {[%clk 0:01:20]}  a5 {[%clk 0:00:19]} 40. Rb3+ {[%clk 0:01:17]} 1-0


[Site "https://www.chess.com"]

[Event "Titled Tuesday Blitz October 25 Late 2022"]
[White "Poltorak, Sebastian"]
[Black "Itkis, Boris"]
[WhiteFideId "1199498"]
[BlackFideId "1209167"]
[WhiteElo "2232"]
[BlackElo "2232"]
[Result "0-1"]
[Round "02"]
[TimeControl "180+1"]
[Date "2022.10.26"]
[WhiteClock "0:00:05"]
[BlackClock "0:00:11"]

1. Nc3 {[%clk 0:03:00]}  d5 {[%clk 0:02:55]} 2. e4 {[%clk 0:03:00]}  dxe4 {[%clk 0:02:53]} 3. Nxe4 {[%clk 0:03:00]}  Bf5 {[%clk 0:02:51]} 4. Ng3 {[%clk 0:02:59]}  Bg6 {[%clk 0:02:51]} 5. Nf3 {[%clk 0:02:59]}  Nd7 {[%clk 0:02:50]} 6. Bc4 {[%clk 0:02:56]}  e6 {[%clk 0:02:49]} 7. O-O {[%clk 0:02:52]}  Ngf6 {[%clk 0:02:47]} 8. d4 {[%clk 0:02:52]}  Be7 {[%clk 0:02:47]} 9. Re1 {[%clk 0:02:51]}  O-O {[%clk 0:02:46]} 10. c3 {[%clk 0:02:48]}  c5 {[%clk 0:02:44]} 11. Qe2 {[%clk 0:02:44]}  a6 {[%clk 0:02:41]} 12. Bg5 {[%clk 0:02:15]}  Rc8 {[%clk 0:02:30]} 13. Rad1 {[%clk 0:02:13]}  Qb6 {[%clk 0:02:23]} 14. b3 {[%clk 0:02:05]}  h6 {[%clk 0:02:13]} 15. Bh4 {[%clk 0:01:52]}  cxd4 {[%clk 0:01:58]} 16. Nxd4 {[%clk 0:01:48]}  Nc5 {[%clk 0:01:50]} 17. b4 {[%clk 0:01:44]}  Nce4 {[%clk 0:01:44]} 18. Nxe4 {[%clk 0:01:32]}  Bxe4 {[%clk 0:01:35]} 19. Bxf6 {[%clk 0:01:03]}  Bxf6 {[%clk 0:01:34]} 20. Bxe6 {[%clk 0:00:46]}  fxe6 {[%clk 0:01:12]} 21. Qxe4 {[%clk 0:00:44]}  Rxc3 {[%clk 0:01:11]} 22. Nxe6 {[%clk 0:00:32]}  Re8 {[%clk 0:01:04]} 23. h3 {[%clk 0:00:25]}  Rc6 {[%clk 0:00:49]} 24. Qf5 {[%clk 0:00:04]}  Rcxe6 {[%clk 0:00:48]} 25. Rxe6 {[%clk 0:00:04]}  Qxe6 {[%clk 0:00:48]} 26. Qf3 {[%clk 0:00:04]}  Qe2 {[%clk 0:00:45]} 27. Qxe2 {[%clk 0:00:05]}  Rxe2 {[%clk 0:00:45]} 28. Rd7 {[%clk 0:00:06]}  Rxa2 {[%clk 0:00:43]} 29. Rxb7 {[%clk 0:00:06]}  Bd4 {[%clk 0:00:43]} 30. Kh2 {[%clk 0:00:04]}  Rxf2 {[%clk 0:00:39]} 31. b5 {[%clk 0:00:05]}  axb5 {[%clk 0:00:36]} 32. Rxb5 {[%clk 0:00:05]}  Kh7 {[%clk 0:00:33]} 33. Rd5 {[%clk 0:00:06]}  Bf6 {[%clk 0:00:33]} 34. Rd3 {[%clk 0:00:06]}  Ra2 {[%clk 0:00:34]} 35. Rf3 {[%clk 0:00:06]}  Kg6 {[%clk 0:00:34]} 36. Rb3 {[%clk 0:00:06]}  Be5+ {[%clk 0:00:34]} 37. Kh1 {[%clk 0:00:06]}  Kh5 {[%clk 0:00:33]} 38. Rb1 {[%clk 0:00:06]}  Bg3 {[%clk 0:00:30]} 39. Kg1 {[%clk 0:00:06]}  g5 {[%clk 0:00:30]} 40. Rd1 {[%clk 0:00:06]}  Re2 {[%clk 0:00:30]} 41. Kf1 {[%clk 0:00:06]}  Rf2+ {[%clk 0:00:30]} 42. Kg1 {[%clk 0:00:07]}  Rc2 {[%clk 0:00:28]} 43. Kf1 {[%clk 0:00:07]}  Kh4 {[%clk 0:00:24]} 44. Rd4+ {[%clk 0:00:07]}  Bf4 {[%clk 0:00:21]} 45. Rd1 {[%clk 0:00:07]}  Kg3 {[%clk 0:00:19]} 46. Rd3+ {[%clk 0:00:07]}  Kh2 {[%clk 0:00:19]} 47. g4 {[%clk 0:00:07]}  Bg3 {[%clk 0:00:16]} 48. Ra3 {[%clk 0:00:04]}  Kxh3 {[%clk 0:00:14]} 49. Rd3 {[%clk 0:00:04]}  Kxg4 {[%clk 0:00:12]} 50. Rd4+ {[%clk 0:00:04]}  Bf4 {[%clk 0:00:12]} 51. Rd3 {[%clk 0:00:04]}  Rd2 {[%clk 0:00:12]} 52. Ra3 {[%clk 0:00:04]}  h5 {[%clk 0:00:12]} 53. Rb3 {[%clk 0:00:04]}  h4 {[%clk 0:00:12]} 54. Kg1 {[%clk 0:00:04]}  h3 {[%clk 0:00:12]} 55. Kh1 {[%clk 0:00:05]}  Rd1# {[%clk 0:00:11]} 0-1


[Site "https://www.chess.com"]

[Event "Titled Tuesday Blitz October 25 Late 2022"]
[White "Radovic, Luka"]
[Black "Gatterer, Florian"]
[WhiteFideId "911569"]
[BlackFideId "811688"]
[WhiteElo "2257"]
[BlackElo "2218"]
[Result "1/2-1/2"]
[Round "02"]
[TimeControl "180+1"]
[Date "2022.10.26"]
[WhiteClock "0:00:41"]
[BlackClock "0:00:04"]

1. Nf3 {[%clk 0:03:00]}  g6 {[%clk 0:02:56]} 2. c4 {[%clk 0:03:01]}  Bg7 {[%clk 0:02:55]} 3. g3 {[%clk 0:03:02]}  c5 {[%clk 0:02:54]} 4. Bg2 {[%clk 0:03:02]}  Nc6 {[%clk 0:02:54]} 5. O-O {[%clk 0:03:03]}  d6 {[%clk 0:02:51]} 6. e3 {[%clk 0:03:02]}  e5 {[%clk 0:02:48]} 7. Nc3 {[%clk 0:03:02]}  Nge7 {[%clk 0:02:47]} 8. a3 {[%clk 0:03:01]}  a5 {[%clk 0:02:46]} 9. Rb1 {[%clk 0:03:01]}  O-O {[%clk 0:02:45]} 10. d3 {[%clk 0:03:00]}  h6 {[%clk 0:02:41]} 11. Nd2 {[%clk 0:03:00]}  Bf5 {[%clk 0:02:36]} 12. Nde4 {[%clk 0:02:58]}  b6 {[%clk 0:02:29]} 13. Bd2 {[%clk 0:02:57]}  Be6 {[%clk 0:02:25]} 14. f4 {[%clk 0:02:51]}  d5 {[%clk 0:02:21]} 15. cxd5 {[%clk 0:02:48]}  Nxd5 {[%clk 0:02:22]} 16. Nxd5 {[%clk 0:02:40]}  Bxd5 {[%clk 0:02:11]} 17. Bc3 {[%clk 0:02:33]}  f5 {[%clk 0:02:02]} 18. Nf2 {[%clk 0:02:33]}  Bxg2 {[%clk 0:01:59]} 19. Kxg2 {[%clk 0:02:34]}  Qd5+ {[%clk 0:01:57]} 20. Qf3 {[%clk 0:02:33]}  Qxf3+ {[%clk 0:01:56]} 21. Kxf3 {[%clk 0:02:33]}  Rfd8 {[%clk 0:01:42]} 22. g4 {[%clk 0:02:24]}  fxg4+ {[%clk 0:01:28]} 23. Nxg4 {[%clk 0:02:22]}  exf4 {[%clk 0:01:26]} 24. Kxf4 {[%clk 0:02:20]}  Rxd3 {[%clk 0:01:21]} 25. Rbd1 {[%clk 0:02:17]}  Rad8 {[%clk 0:01:20]} 26. Rxd3 {[%clk 0:02:16]}  Rxd3 {[%clk 0:01:20]} 27. Ke4 {[%clk 0:02:14]}  Rd6 {[%clk 0:01:03]} 28. h4 {[%clk 0:01:59]}  h5 {[%clk 0:00:58]} 29. Nh2 {[%clk 0:01:55]}  Bxc3 {[%clk 0:00:38]} 30. bxc3 {[%clk 0:01:54]}  Ne7 {[%clk 0:00:38]} 31. Nf3 {[%clk 0:01:38]}  Re6+ {[%clk 0:00:35]} 32. Kd3 {[%clk 0:01:32]}  b5 {[%clk 0:00:31]} 33. Rb1 {[%clk 0:01:24]}  c4+ {[%clk 0:00:28]} 34. Kd2 {[%clk 0:01:15]}  Nf5 {[%clk 0:00:25]} 35. Rxb5 {[%clk 0:01:14]}  Nxe3 {[%clk 0:00:23]} 36. Rxa5 {[%clk 0:01:11]}  Nf1+ {[%clk 0:00:22]} 37. Kc2 {[%clk 0:01:07]}  Re2+ {[%clk 0:00:21]} 38. Kd1 {[%clk 0:01:07]}  Rf2 {[%clk 0:00:21]} 39. Ne5 {[%clk 0:01:01]}  Ne3+ {[%clk 0:00:20]} 40. Ke1 {[%clk 0:01:01]}  Rh2 {[%clk 0:00:18]} 41. Nxg6 {[%clk 0:01:00]}  Nc2+ {[%clk 0:00:17]} 42. Kf1 {[%clk 0:00:59]}  Ne3+ {[%clk 0:00:16]} 43. Kg1 {[%clk 0:00:59]}  Rc2 {[%clk 0:00:16]} 44. Nf4 {[%clk 0:00:55]}  Rxc3 {[%clk 0:00:15]} 45. Rxh5 {[%clk 0:00:53]}  Rc1+ {[%clk 0:00:12]} 46. Kf2 {[%clk 0:00:52]}  Ng4+ {[%clk 0:00:12]} 47. Kf3 {[%clk 0:00:50]}  Nh2+ {[%clk 0:00:12]} 48. Kg2 {[%clk 0:00:48]}  Nf1 {[%clk 0:00:12]} 49. Rc5 {[%clk 0:00:48]}  c3 {[%clk 0:00:12]} 50. Kf2 {[%clk 0:00:47]}  c2 {[%clk 0:00:11]} 51. Nd3 {[%clk 0:00:44]}  Rd1 {[%clk 0:00:08]} 52. Rxc2 {[%clk 0:00:36]}  Rxd3 {[%clk 0:00:07]} 53. Kxf1 {[%clk 0:00:31]}  Rxa3 {[%clk 0:00:07]} 54. Kg2 {[%clk 0:00:30]}  Kh7 {[%clk 0:00:06]} 55. Rc6 {[%clk 0:00:30]}  Rb3 {[%clk 0:00:05]} 56. Rd6 {[%clk 0:00:30]}  Ra3 {[%clk 0:00:05]} 57. Kh2 {[%clk 0:00:30]}  Rb3 {[%clk 0:00:05]} 58. Rc6 {[%clk 0:00:30]}  Ra3 {[%clk 0:00:05]} 59. Kg2 {[%clk 0:00:30]}  Rb3 {[%clk 0:00:05]} 60. Rc4 {[%clk 0:00:31]}  Ra3 {[%clk 0:00:05]} 61. Rf4 {[%clk 0:00:31]}  Rb3 {[%clk 0:00:04]} 62. Kf2 {[%clk 0:00:32]}  Ra3 {[%clk 0:00:04]} 63. Ke2 {[%clk 0:00:32]}  Kh6 {[%clk 0:00:04]} 64. Kf2 {[%clk 0:00:33]}  Kh5 {[%clk 0:00:04]} 65. Kg2 {[%clk 0:00:33]}  Rb3 {[%clk 0:00:03]} 66. Rd4 {[%clk 0:00:33]}  Ra3 {[%clk 0:00:03]} 67. Kf2 {[%clk 0:00:33]}  Rb3 {[%clk 0:00:03]} 68. Ke2 {[%clk 0:00:34]}  Ra3 {[%clk 0:00:03]} 69. Kd2 {[%clk 0:00:35]}  Rh3 {[%clk 0:00:03]} 70. Rd5+ {[%clk 0:00:36]}  Kxh4 {[%clk 0:00:03]} 71. Kc2 {[%clk 0:00:36]}  Rg3 {[%clk 0:00:03]} 72. Rd4+ {[%clk 0:00:37]}  Rg4 {[%clk 0:00:03]} 73. Rd8 {[%clk 0:00:37]}  Rg5 {[%clk 0:00:03]} 74. Kc3 {[%clk 0:00:38]}  Rg3+ {[%clk 0:00:04]} 75. Kd4 {[%clk 0:00:38]}  Rg4+ {[%clk 0:00:04]} 76. Ke5 {[%clk 0:00:39]}  Rg1 {[%clk 0:00:03]} 77. Kf5 {[%clk 0:00:38]}  Rf1+ {[%clk 0:00:03]} 78. Ke4 {[%clk 0:00:39]}  Re1+ {[%clk 0:00:04]} 79. Kf4 {[%clk 0:00:39]}  Rf1+ {[%clk 0:00:04]} 80. Ke3 {[%clk 0:00:40]}  Re1+ {[%clk 0:00:04]} 81. Kf4 {[%clk 0:00:40]}  Rf1+ {[%clk 0:00:03]} 82. Ke3 {[%clk 0:00:41]}  Re1+ {[%clk 0:00:04]} 83. Kf4 {[%clk 0:00:41]} 1/2-1/2


[Site "https://www.chess.com"]

[Event "Titled Tuesday Blitz October 25 Late 2022"]
[White "Roberts, Paul"]
[Black "Kisic, Bozidar"]
[WhiteFideId "2400600"]
[BlackFideId "16500350"]
[WhiteElo "2112"]
[BlackElo "2233"]
[Result "0-1"]
[Round "02"]
[TimeControl "180+1"]
[Date "2022.10.26"]
[WhiteClock "0:00:16"]
[BlackClock "0:00:33"]

1. e3 {[%clk 0:03:00]}  g6 {[%clk 0:02:59]} 2. Nf3 {[%clk 0:02:59]}  Bg7 {[%clk 0:02:59]} 3. d4 {[%clk 0:03:00]}  d6 {[%clk 0:02:57]} 4. Be2 {[%clk 0:02:59]}  a6 {[%clk 0:02:57]} 5. b3 {[%clk 0:02:57]}  c5 {[%clk 0:02:55]} 6. Bb2 {[%clk 0:02:56]}  Qa5+ {[%clk 0:02:55]} 7. Qd2 {[%clk 0:02:55]}  Qc7 {[%clk 0:02:51]} 8. O-O {[%clk 0:02:54]}  Nf6 {[%clk 0:02:49]} 9. c4 {[%clk 0:02:54]}  Ne4 {[%clk 0:02:47]} 10. Qc1 {[%clk 0:02:52]}  O-O {[%clk 0:02:38]} 11. Nc3 {[%clk 0:02:52]}  Nxc3 {[%clk 0:02:37]} 12. Bxc3 {[%clk 0:02:52]}  cxd4 {[%clk 0:02:32]} 13. Bxd4 {[%clk 0:02:51]}  e5 {[%clk 0:02:32]} 14. Bc3 {[%clk 0:02:45]}  h6 {[%clk 0:02:26]} 15. Rd1 {[%clk 0:02:44]}  Be6 {[%clk 0:02:26]} 16. Qb2 {[%clk 0:02:39]}  Nd7 {[%clk 0:02:24]} 17. Rac1 {[%clk 0:02:39]}  Rfd8 {[%clk 0:02:22]} 18. a4 {[%clk 0:02:37]}  Nc5 {[%clk 0:02:21]} 19. Nd2 {[%clk 0:02:23]}  Bf5 {[%clk 0:02:11]} 20. f3 {[%clk 0:02:14]}  Qb6 {[%clk 0:02:04]} 21. Kh1 {[%clk 0:02:10]}  Rac8 {[%clk 0:02:00]} 22. e4 {[%clk 0:02:09]}  Bd7 {[%clk 0:01:57]} 23. a5 {[%clk 0:02:08]}  Qa7 {[%clk 0:01:48]} 24. Nf1 {[%clk 0:02:08]}  Be8 {[%clk 0:01:47]} 25. Qa2 {[%clk 0:02:03]}  Ne6 {[%clk 0:01:45]} 26. Bd2 {[%clk 0:01:54]}  Nd4 {[%clk 0:01:45]} 27. Be3 {[%clk 0:01:54]}  Qb8 {[%clk 0:01:41]} 28. b4 {[%clk 0:01:51]}  Qc7 {[%clk 0:01:37]} 29. Bd3 {[%clk 0:01:48]}  Qe7 {[%clk 0:01:37]} 30. Nd2 {[%clk 0:01:46]}  Qh4 {[%clk 0:01:35]} 31. Nb3 {[%clk 0:01:44]}  Ne6 {[%clk 0:01:31]} 32. Qf2 {[%clk 0:01:38]}  Qh5 {[%clk 0:01:30]} 33. Be2 {[%clk 0:01:35]}  Nf4 {[%clk 0:01:22]} 34. g4 {[%clk 0:01:34]}  Qg5 {[%clk 0:01:17]} 35. Bf1 {[%clk 0:01:27]}  h5 {[%clk 0:01:06]} 36. h3 {[%clk 0:01:16]}  Bh6 {[%clk 0:01:04]} 37. h4 {[%clk 0:01:14]}  Qe7 {[%clk 0:01:00]} 38. g5 {[%clk 0:01:14]}  Bg7 {[%clk 0:01:01]} 39. Bb6 {[%clk 0:01:09]}  Rd7 {[%clk 0:00:55]} 40. c5 {[%clk 0:01:08]}  Qe6 {[%clk 0:00:51]} 41. Bc4 {[%clk 0:01:01]}  Qh3+ {[%clk 0:00:51]} 42. Kg1 {[%clk 0:00:58]}  dxc5 {[%clk 0:00:50]} 43. Rxd7 {[%clk 0:00:46]}  Qxd7 {[%clk 0:00:46]} 44. Nxc5 {[%clk 0:00:45]}  Nh3+ {[%clk 0:00:45]} 45. Kf1 {[%clk 0:00:42]}  Nxf2 {[%clk 0:00:43]} 46. Nxd7 {[%clk 0:00:41]}  Bxd7 {[%clk 0:00:43]} 47. Kxf2 {[%clk 0:00:41]}  Be6 {[%clk 0:00:43]} 48. Bc5 {[%clk 0:00:38]}  Bxc4 {[%clk 0:00:38]} 49. Rxc4 {[%clk 0:00:38]}  Bf8 {[%clk 0:00:39]} 50. Ke2 {[%clk 0:00:37]}  Bxc5 {[%clk 0:00:35]} 51. bxc5 {[%clk 0:00:37]}  Kf8 {[%clk 0:00:34]} 52. Kd3 {[%clk 0:00:34]}  Ke7 {[%clk 0:00:34]} 53. Rb4 {[%clk 0:00:32]}  Rxc5 {[%clk 0:00:34]} 54. Rxb7+ {[%clk 0:00:32]}  Kf8 {[%clk 0:00:34]} 55. Rb8+ {[%clk 0:00:28]}  Kg7 {[%clk 0:00:34]} 56. Rb7 {[%clk 0:00:24]}  Rxa5 {[%clk 0:00:34]} 57. Kc4 {[%clk 0:00:23]}  Ra3 {[%clk 0:00:34]} 58. Re7 {[%clk 0:00:21]}  Rxf3 {[%clk 0:00:32]} 59. Rxe5 {[%clk 0:00:20]}  Rf4 {[%clk 0:00:33]} 60. Kd4 {[%clk 0:00:19]}  Rxh4 {[%clk 0:00:33]} 61. Ra5 {[%clk 0:00:19]}  Rg4 {[%clk 0:00:33]} 62. Ke3 {[%clk 0:00:17]}  h4 {[%clk 0:00:33]} 63. Kf3 {[%clk 0:00:17]}  Rg3+ {[%clk 0:00:33]} 64. Kf4 {[%clk 0:00:17]}  Rg1 {[%clk 0:00:33]} 65. Rxa6 {[%clk 0:00:17]}  h3 {[%clk 0:00:33]} 66. Ra3 {[%clk 0:00:16]}  h2 {[%clk 0:00:33]} 67. Rh3 {[%clk 0:00:16]}  h1=Q {[%clk 0:00:33]} 0-1


[Site "https://www.chess.com"]

[Event "Titled Tuesday Blitz October 25 Late 2022"]
[White "Rostomyan, Mikayel"]
[Black "Kabanova, Ekaterina"]
[WhiteFideId "13313754"]
[BlackFideId "24112917"]
[WhiteElo "2018"]
[BlackElo "2141"]
[Result "1-0"]
[Round "02"]
[TimeControl "180+1"]
[Date "2022.10.26"]
[WhiteClock "0:01:45"]
[BlackClock "0:02:23"]

1. d4 {[%clk 0:02:59]}  c5 {[%clk 0:03:00]} 2. d5 {[%clk 0:02:56]}  e5 {[%clk 0:03:00]} 3. Nc3 {[%clk 0:02:49]}  a6 {[%clk 0:03:00]} 4. a4 {[%clk 0:02:49]}  d6 {[%clk 0:03:00]} 5. e4 {[%clk 0:02:49]}  Ne7 {[%clk 0:03:01]} 6. g3 {[%clk 0:02:45]}  Ng6 {[%clk 0:03:00]} 7. h4 {[%clk 0:02:45]}  Be7 {[%clk 0:03:00]} 8. h5 {[%clk 0:02:43]}  Nf8 {[%clk 0:03:00]} 9. Bg2 {[%clk 0:02:43]}  h6 {[%clk 0:03:00]} 10. Nge2 {[%clk 0:02:42]}  Nh7 {[%clk 0:03:01]} 11. O-O {[%clk 0:02:39]}  O-O {[%clk 0:03:01]} 12. f4 {[%clk 0:02:39]}  exf4 {[%clk 0:03:01]} 13. gxf4 {[%clk 0:02:39]}  Bg4 {[%clk 0:02:59]} 14. Bf3 {[%clk 0:02:32]}  Qc8 {[%clk 0:02:58]} 15. Ng3 {[%clk 0:02:30]}  Nf6 {[%clk 0:02:54]} 16. e5 {[%clk 0:02:23]}  Bxf3 {[%clk 0:02:45]} 17. Qxf3 {[%clk 0:02:24]}  dxe5 {[%clk 0:02:45]} 18. fxe5 {[%clk 0:02:19]}  Ng4 {[%clk 0:02:46]} 19. Nf5 {[%clk 0:01:55]}  Bf6 {[%clk 0:02:23]} 20. Qxg4 {[%clk 0:01:47]}  Bxe5 {[%clk 0:02:23]} 21. Ne7+ {[%clk 0:01:45]} 1-0


[Site "https://www.chess.com"]

[Event "Titled Tuesday Blitz October 25 Late 2022"]
[White "Sabar, Ethmane Daouda"]
[Black "Lamaze, Simon"]
[WhiteFideId "19600097"]
[BlackFideId "36069264"]
[WhiteElo "1950"]
[BlackElo "2272"]
[Result "0-1"]
[Round "02"]
[TimeControl "180+1"]
[Date "2022.10.26"]
[WhiteClock "0:00:33"]
[BlackClock "0:00:23"]

1. b3 {[%clk 0:02:59]}  e5 {[%clk 0:02:59]} 2. Bb2 {[%clk 0:02:59]}  Nc6 {[%clk 0:03:00]} 3. e3 {[%clk 0:02:58]}  d5 {[%clk 0:03:00]} 4. Bb5 {[%clk 0:02:57]}  Ne7 {[%clk 0:03:01]} 5. Bxe5 {[%clk 0:02:56]}  a6 {[%clk 0:03:01]} 6. Bxc6+ {[%clk 0:02:55]}  Nxc6 {[%clk 0:03:02]} 7. Bb2 {[%clk 0:02:55]}  Qg5 {[%clk 0:03:01]} 8. Qf3 {[%clk 0:02:36]}  Bg4 {[%clk 0:03:01]} 9. Qg3 {[%clk 0:02:35]}  Bd6 {[%clk 0:03:01]} 10. f4 {[%clk 0:02:32]}  Qf5 {[%clk 0:03:01]} 11. d3 {[%clk 0:02:21]}  O-O-O {[%clk 0:02:41]} 12. h3 {[%clk 0:02:18]}  Bh5 {[%clk 0:02:39]} 13. Qg5 {[%clk 0:02:03]}  Qxg5 {[%clk 0:02:36]} 14. fxg5 {[%clk 0:02:04]}  Rhe8 {[%clk 0:02:13]} 15. Kf2 {[%clk 0:02:01]}  Bc5 {[%clk 0:01:36]} 16. d4 {[%clk 0:01:52]}  Bd6 {[%clk 0:01:36]} 17. Nf3 {[%clk 0:01:50]}  Re6 {[%clk 0:01:28]} 18. Nbd2 {[%clk 0:01:38]}  Nb4 {[%clk 0:01:26]} 19. Rhc1 {[%clk 0:01:33]}  Bg6 {[%clk 0:01:26]} 20. Ne1 {[%clk 0:01:26]}  Rde8 {[%clk 0:01:26]} 21. Nf1 {[%clk 0:01:26]}  f6 {[%clk 0:01:06]} 22. a3 {[%clk 0:01:26]}  Nc6 {[%clk 0:01:05]} 23. Nf3 {[%clk 0:01:22]}  Rf8 {[%clk 0:01:02]} 24. Kg1 {[%clk 0:01:15]}  Be4 {[%clk 0:00:55]} 25. g6 {[%clk 0:01:09]}  Bxg6 {[%clk 0:00:55]} 26. c4 {[%clk 0:01:09]}  Be4 {[%clk 0:00:44]} 27. N3d2 {[%clk 0:01:03]}  Na5 {[%clk 0:00:32]} 28. b4 {[%clk 0:00:49]}  Nxc4 {[%clk 0:00:29]} 29. Nxc4 {[%clk 0:00:46]}  dxc4 {[%clk 0:00:29]} 30. Rxc4 {[%clk 0:00:44]}  Bd5 {[%clk 0:00:30]} 31. Rc3 {[%clk 0:00:43]}  f5 {[%clk 0:00:30]} 32. Rac1 {[%clk 0:00:43]}  c6 {[%clk 0:00:29]} 33. R3c2 {[%clk 0:00:43]}  f4 {[%clk 0:00:30]} 34. exf4 {[%clk 0:00:42]}  Rxf4 {[%clk 0:00:30]} 35. Rf2 {[%clk 0:00:42]}  Rg6 {[%clk 0:00:30]} 36. Rxf4 {[%clk 0:00:42]}  Bxf4 {[%clk 0:00:31]} 37. Rc2 {[%clk 0:00:42]}  Kd7 {[%clk 0:00:26]} 38. Bc1 {[%clk 0:00:42]}  Bc7 {[%clk 0:00:25]} 39. Ne3 {[%clk 0:00:40]}  Be4 {[%clk 0:00:23]} 40. Rf2 {[%clk 0:00:39]}  Ke6 {[%clk 0:00:21]} 41. Ng4 {[%clk 0:00:38]}  Bb6 {[%clk 0:00:21]} 42. Be3 {[%clk 0:00:36]}  h5 {[%clk 0:00:18]} 43. Ne5 {[%clk 0:00:37]}  Rg3 {[%clk 0:00:19]} 44. Re2 {[%clk 0:00:32]}  Rxe3 {[%clk 0:00:19]} 45. Rxe3 {[%clk 0:00:33]}  Bxd4 {[%clk 0:00:19]} 46. Kf2 {[%clk 0:00:33]}  Kxe5 {[%clk 0:00:19]} 47. g4 {[%clk 0:00:33]}  Bxe3+ {[%clk 0:00:20]} 48. Kxe3 {[%clk 0:00:33]}  hxg4 {[%clk 0:00:20]} 49. hxg4 {[%clk 0:00:34]}  g5 {[%clk 0:00:21]} 50. a4 {[%clk 0:00:34]}  b5 {[%clk 0:00:21]} 51. a5 {[%clk 0:00:34]}  Bd5 {[%clk 0:00:21]} 52. Kf2 {[%clk 0:00:33]}  Kf4 {[%clk 0:00:22]} 53. Kg1 {[%clk 0:00:33]}  Kxg4 {[%clk 0:00:23]} 0-1


[Site "https://www.chess.com"]